[Event "*** Titled Tuesday Blitz"]
[Site "Chess.com"]
[Date "2021.02.09"]
[Round "6"]
[White "Grimlock_Glasgow"]
[Black "VFernandezB"]
[Result "1/2-1/2"]
[WhiteElo "2474"]
[BlackElo "2313"]
[TimeControl "180+1"]
[EndTime "11:09:21 PST"]
[Termination "Game drawn - insufficient material"]

1. e4 {[%clk 0:03:00.9]} 1... c5 {[%clk 0:02:59.8]} 2. Nc3 {[%clk 0:03:00.6]}
2... d6 {[%clk 0:02:58.3]} 3. d4 {[%clk 0:02:59.5]} 3... cxd4 {[%clk 0:02:53.9]}
4. Qxd4 {[%clk 0:03:00.4]} 4... Nc6 {[%clk 0:02:51.4]} 5. Qd2 {[%clk 0:03:00.2]}
5... g6 {[%clk 0:02:40.9]} 6. b3 {[%clk 0:03:00.3]} 6... Bg7 {[%clk 0:02:36]} 7.
Bb2 {[%clk 0:03:00]} 7... Nf6 {[%clk 0:02:36.6]} 8. O-O-O {[%clk 0:02:59.9]}
8... O-O {[%clk 0:02:29.5]} 9. f3 {[%clk 0:03:00]} 9... Qa5 {[%clk 0:02:19.8]}
10. Kb1 {[%clk 0:02:56]} 10... Rd8 {[%clk 0:02:19.6]} 11. h4 {[%clk 0:02:44.5]}
11... Be6 {[%clk 0:02:15.3]} 12. Nge2 {[%clk 0:02:39.3]} 12... d5 {[%clk
0:02:15.6]} 13. Nxd5 {[%clk 0:02:23.1]} 13... Qxd2 {[%clk 0:02:01.5]} 14. Rxd2
{[%clk 0:02:22.7]} 14... Nxd5 {[%clk 0:01:54.3]} 15. exd5 {[%clk 0:02:20.4]}
15... Bxd5 {[%clk 0:01:50]} 16. Nf4 {[%clk 0:02:10.6]} 16... Bxb2 {[%clk
0:01:26.2]} 17. Kxb2 {[%clk 0:02:11.5]} 17... Be6 {[%clk 0:01:16.3]} 18. Rxd8+
{[%clk 0:01:51.5]} 18... Nxd8 {[%clk 0:01:16.8]} 19. Nxe6 {[%clk 0:01:22.8]}
19... Nxe6 {[%clk 0:01:16.7]} 20. Bc4 {[%clk 0:01:23.5]} 20... Nf4 {[%clk
0:01:10.5]} 21. g3 {[%clk 0:01:20.1]} 21... Nh5 {[%clk 0:01:10.7]} 22. g4 {[%clk
0:01:17.9]} 22... Nf4 {[%clk 0:01:10.8]} 23. Rd1 {[%clk 0:01:18]} 23... a6
{[%clk 0:01:01]} 24. a4 {[%clk 0:01:17]} 24... Kf8 {[%clk 0:00:36.9]} 25. Rd7
{[%clk 0:01:07.2]} 25... Rb8 {[%clk 0:00:36.8]} 26. a5 {[%clk 0:01:00.5]} 26...
Ng2 {[%clk 0:00:31.5]} 27. h5 {[%clk 0:00:57.3]} 27... gxh5 {[%clk 0:00:28.7]}
28. gxh5 {[%clk 0:00:58.2]} 28... h6 {[%clk 0:00:26.7]} 29. Ka3 {[%clk
0:00:37.7]} 29... Nf4 {[%clk 0:00:25.8]} 30. Rd4 {[%clk 0:00:34.1]} 30... Nxh5
{[%clk 0:00:24.7]} 31. Rh4 {[%clk 0:00:32.4]} 31... Nf6 {[%clk 0:00:23.1]} 32.
Rxh6 {[%clk 0:00:32.3]} 32... Kg7 {[%clk 0:00:23.8]} 33. Rh2 {[%clk 0:00:30.4]}
33... b6 {[%clk 0:00:22.7]} 34. axb6 {[%clk 0:00:29.5]} 34... Rxb6 {[%clk
0:00:23.6]} 35. Bd3 {[%clk 0:00:28.4]} 35... Nd5 {[%clk 0:00:19.7]} 36. Rh7+
{[%clk 0:00:24.5]} 36... Kf6 {[%clk 0:00:19.4]} 37. Rh6+ {[%clk 0:00:23.9]}
37... Ke5 {[%clk 0:00:18.1]} 38. Rxb6 {[%clk 0:00:21.7]} 38... Nxb6 {[%clk
0:00:17.9]} 39. Bxa6 {[%clk 0:00:22.2]} 39... Kd4 {[%clk 0:00:11.7]} 40. c4
{[%clk 0:00:20.4]} 40... e5 {[%clk 0:00:09.9]} 41. Bb7 {[%clk 0:00:18.4]} 41...
f5 {[%clk 0:00:09.9]} 42. Kb4 {[%clk 0:00:18]} 42... e4 {[%clk 0:00:08.9]} 43.
fxe4 {[%clk 0:00:17.7]} 43... fxe4 {[%clk 0:00:09.8]} 44. Bxe4 {[%clk
0:00:13.5]} 44... Kxe4 {[%clk 0:00:09.6]} 45. Kc5 {[%clk 0:00:14.4]} 45... Nd7+
{[%clk 0:00:06.9]} 46. Kd6 {[%clk 0:00:12.8]} 46... Ne5 {[%clk 0:00:06.5]} 47.
c5 {[%clk 0:00:12.8]} 47... Kd4 {[%clk 0:00:06.3]} 48. b4 {[%clk 0:00:12.1]}
48... Nc4+ {[%clk 0:00:05.1]} 49. Kc6 {[%clk 0:00:11]} 49... Ne5+ {[%clk
0:00:05.3]} 50. Kb6 {[%clk 0:00:10.5]} 50... Kc4 {[%clk 0:00:05]} 51. b5 {[%clk
0:00:10.6]} 51... Kd5 {[%clk 0:00:05.1]} 52. c6 {[%clk 0:00:10.1]} 52... Nc4+
{[%clk 0:00:04.6]} 53. Kc7 {[%clk 0:00:10.1]} 53... Kc5 {[%clk 0:00:04.6]} 54.
Kd8 {[%clk 0:00:06.3]} 54... Kxb5 {[%clk 0:00:03.8]} 55. c7 {[%clk 0:00:06.6]}
55... Nb6 {[%clk 0:00:04.7]} 56. c8=Q {[%clk 0:00:06.6]} 56... Nxc8 {[%clk
0:00:05]} 1/2-1/2

[Event "*** Titled Tuesday Blitz"]
[Site "Chess.com"]
[Date "2021.02.09"]
[Round "6"]
[White "Dii210"]
[Black "GP9isback23"]
[Result "1-0"]
[WhiteElo "2323"]
[BlackElo "2514"]
[TimeControl "180+1"]
[EndTime "11:09:26 PST"]
[Termination "Dii210 won by checkmate"]

1. e4 {[%clk 0:03:00.9]} 1... c5 {[%clk 0:02:59.4]} 2. Nf3 {[%clk 0:03:00.4]}
2... e6 {[%clk 0:02:59.5]} 3. d4 {[%clk 0:02:59]} 3... cxd4 {[%clk 0:03:00.4]}
4. Nxd4 {[%clk 0:02:59.4]} 4... Nf6 {[%clk 0:03:00.7]} 5. Nc3 {[%clk 0:02:59.3]}
5... Nc6 {[%clk 0:03:00.5]} 6. Ndb5 {[%clk 0:02:59.3]} 6... Bb4 {[%clk
0:02:59.8]} 7. a3 {[%clk 0:02:58.5]} 7... Bxc3+ {[%clk 0:02:59.8]} 8. Nxc3
{[%clk 0:02:59.4]} 8... d5 {[%clk 0:03:00.3]} 9. exd5 {[%clk 0:02:59.2]} 9...
exd5 {[%clk 0:03:01.2]} 10. Bd3 {[%clk 0:02:51.1]} 10... O-O {[%clk 0:03:00.6]}
11. O-O {[%clk 0:02:50.6]} 11... d4 {[%clk 0:03:00.5]} 12. Ne4 {[%clk
0:02:50.1]} 12... Bf5 {[%clk 0:02:59.5]} 13. Nxf6+ {[%clk 0:02:49.4]} 13... Qxf6
{[%clk 0:02:58.9]} 14. Re1 {[%clk 0:02:28.2]} 14... Rfe8 {[%clk 0:02:52.1]} 15.
Bxf5 {[%clk 0:02:27.8]} 15... Qxf5 {[%clk 0:02:49.8]} 16. Bd2 {[%clk 0:02:27.2]}
16... Rad8 {[%clk 0:02:44]} 17. g3 {[%clk 0:02:13]} 17... h6 {[%clk 0:02:40.8]}
18. Rxe8+ {[%clk 0:02:11]} 18... Rxe8 {[%clk 0:02:40.7]} 19. Bf4 {[%clk
0:02:11.3]} 19... g5 {[%clk 0:02:37.1]} 20. Bd6 {[%clk 0:02:07.8]} 20... Rd8
{[%clk 0:02:30.4]} 21. Bb4 {[%clk 0:02:04.5]} 21... d3 {[%clk 0:02:26.8]} 22.
cxd3 {[%clk 0:02:01.6]} 22... Rxd3 {[%clk 0:02:25.6]} 23. Qe2 {[%clk 0:02:01.2]}
23... Nxb4 {[%clk 0:01:56.5]} 24. axb4 {[%clk 0:02:00.4]} 24... a6 {[%clk
0:01:56.3]} 25. Re1 {[%clk 0:01:49.7]} 25... Rf3 {[%clk 0:01:48.8]} 26. Rd1
{[%clk 0:01:45.6]} 26... Kg7 {[%clk 0:01:47]} 27. Rd8 {[%clk 0:01:37.7]} 27...
g4 {[%clk 0:00:47.5]} 28. Rb8 {[%clk 0:00:58.9]} 28... Rd3 {[%clk 0:00:31.4]}
29. Rxb7 {[%clk 0:00:53.7]} 29... Qd5 {[%clk 0:00:31.4]} 30. Qxg4+ {[%clk
0:00:51.5]} 30... Kh7 {[%clk 0:00:29.8]} 31. f4 {[%clk 0:00:23.7]} 31... Rd1+
{[%clk 0:00:25.8]} 32. Kf2 {[%clk 0:00:23.6]} 32... Rd2+ {[%clk 0:00:25.9]} 33.
Ke1 {[%clk 0:00:22.5]} 33... Rd4 {[%clk 0:00:20.6]} 34. Re7 {[%clk 0:00:19.4]}
34... Re4+ {[%clk 0:00:17.1]} 35. Rxe4 {[%clk 0:00:19.2]} 35... Qxe4+ {[%clk
0:00:18]} 36. Kf2 {[%clk 0:00:19.4]} 36... Qd4+ {[%clk 0:00:17.2]} 37. Kg2
{[%clk 0:00:18.1]} 37... Qe4+ {[%clk 0:00:15.3]} 38. Kh3 {[%clk 0:00:16.6]}
38... Qxb4 {[%clk 0:00:13]} 39. Qf5+ {[%clk 0:00:16.5]} 39... Kg7 {[%clk
0:00:13.6]} 40. Qe5+ {[%clk 0:00:16.6]} 40... Kg8 {[%clk 0:00:13.7]} 41. Kg4
{[%clk 0:00:16]} 41... Qb6 {[%clk 0:00:12.6]} 42. h4 {[%clk 0:00:15.3]} 42... a5
{[%clk 0:00:12.8]} 43. Qe8+ {[%clk 0:00:15.2]} 43... Kg7 {[%clk 0:00:12.9]} 44.
Qe5+ {[%clk 0:00:15.4]} 44... Kg8 {[%clk 0:00:13.3]} 45. h5 {[%clk 0:00:15.4]}
45... a4 {[%clk 0:00:13.5]} 46. Kf5 {[%clk 0:00:15.1]} 46... Qc6 {[%clk
0:00:11]} 47. Kg4 {[%clk 0:00:13.2]} 47... Qd7+ {[%clk 0:00:11.3]} 48. Kf3
{[%clk 0:00:12.3]} 48... Qc6+ {[%clk 0:00:12.2]} 49. Kg4 {[%clk 0:00:11.8]}
49... Qd7+ {[%clk 0:00:13.1]} 50. Kh4 {[%clk 0:00:11.6]} 50... Qc6 {[%clk
0:00:14]} 51. g4 {[%clk 0:00:11.5]} 51... Qd7 {[%clk 0:00:14.2]} 52. g5 {[%clk
0:00:11.1]} 52... hxg5+ {[%clk 0:00:14.6]} 53. Kxg5 {[%clk 0:00:11.2]} 53...
Qd8+ {[%clk 0:00:14.5]} 54. Qf6 {[%clk 0:00:09.4]} 54... Qd5+ {[%clk 0:00:14.6]}
55. Kh6 {[%clk 0:00:09]} 55... Kf8 {[%clk 0:00:11.9]} 56. f5 {[%clk 0:00:07.6]}
56... Qd2+ {[%clk 0:00:11.4]} 57. Kh7 {[%clk 0:00:07.6]} 57... Qh2 {[%clk
0:00:10.8]} 58. Qd8# {[%clk 0:00:06.3]} 1-0

[Event "*** Titled Tuesday Blitz"]
[Site "Chess.com"]
[Date "2021.02.09"]
[Round "6"]
[White "federicosellitti"]
[Black "Legendinunknown"]
[Result "1/2-1/2"]
[WhiteElo "2462"]
[BlackElo "2604"]
[TimeControl "180+1"]
[EndTime "11:09:33 PST"]
[Termination "Game drawn - insufficient material"]

1. e4 {[%clk 0:03:00.9]} 1... c5 {[%clk 0:02:56.9]} 2. Nc3 {[%clk 0:03:00.5]}
2... Nc6 {[%clk 0:02:56]} 3. g3 {[%clk 0:03:00.2]} 3... g6 {[%clk 0:02:55.4]} 4.
Bg2 {[%clk 0:03:00.1]} 4... Bg7 {[%clk 0:02:56]} 5. d3 {[%clk 0:03:00.4]} 5...
d6 {[%clk 0:02:56.5]} 6. Be3 {[%clk 0:02:59.8]} 6... Nf6 {[%clk 0:02:56.5]} 7.
h3 {[%clk 0:02:58.4]} 7... O-O {[%clk 0:02:56.2]} 8. Qd2 {[%clk 0:02:58.1]} 8...
e6 {[%clk 0:02:53.9]} 9. Bh6 {[%clk 0:02:52.9]} 9... d5 {[%clk 0:02:52]} 10.
Bxg7 {[%clk 0:02:50.2]} 10... Kxg7 {[%clk 0:02:52.9]} 11. exd5 {[%clk 0:02:47]}
11... exd5 {[%clk 0:02:53.3]} 12. Nge2 {[%clk 0:02:44.5]} 12... d4 {[%clk
0:02:49.7]} 13. Ne4 {[%clk 0:02:45]} 13... Nxe4 {[%clk 0:02:49]} 14. Bxe4 {[%clk
0:02:45.9]} 14... Re8 {[%clk 0:02:47.7]} 15. O-O-O {[%clk 0:02:42.3]} 15... Be6
{[%clk 0:02:43.5]} 16. h4 {[%clk 0:02:03.9]} 16... h5 {[%clk 0:02:05.7]} 17. Nf4
{[%clk 0:02:03.4]} 17... Qa5 {[%clk 0:01:48.1]} 18. Bxc6 {[%clk 0:01:41.3]}
18... Qxa2 {[%clk 0:01:43.5]} 19. Nxh5+ {[%clk 0:01:41.2]} 19... gxh5 {[%clk
0:01:26.4]} 20. Qg5+ {[%clk 0:01:40.7]} 20... Kf8 {[%clk 0:01:26.2]} 21. Bxe8
{[%clk 0:01:21.5]} 21... Qa1+ {[%clk 0:01:22.2]} 22. Kd2 {[%clk 0:01:21.9]}
22... Qa5+ {[%clk 0:01:22.9]} 23. Ke2 {[%clk 0:01:05.9]} 23... Rxe8 {[%clk
0:01:19.4]} 24. Kf1 {[%clk 0:01:05.9]} 24... Bg4 {[%clk 0:01:18.9]} 25. Kg2
{[%clk 0:00:46.3]} 25... Bxd1 {[%clk 0:00:43.8]} 26. Rxd1 {[%clk 0:00:47.2]}
26... Re6 {[%clk 0:00:42.7]} 27. Qxh5 {[%clk 0:00:41.5]} 27... Qb5 {[%clk
0:00:43]} 28. b3 {[%clk 0:00:39.5]} 28... a5 {[%clk 0:00:18.7]} 29. Qf3 {[%clk
0:00:23.2]} 29... b6 {[%clk 0:00:16.6]} 30. h5 {[%clk 0:00:23]} 30... a4 {[%clk
0:00:16.1]} 31. bxa4 {[%clk 0:00:22.9]} 31... Qxa4 {[%clk 0:00:17]} 32. Rd2
{[%clk 0:00:23]} 32... Qa1 {[%clk 0:00:16.2]} 33. Re2 {[%clk 0:00:21.2]} 33...
Rxe2 {[%clk 0:00:14.7]} 34. Qxe2 {[%clk 0:00:22.1]} 34... Qc1 {[%clk 0:00:15]}
35. Qe4 {[%clk 0:00:10.4]} 35... b5 {[%clk 0:00:13.1]} 36. Qc6 {[%clk
0:00:06.1]} 36... Qxc2 {[%clk 0:00:12.5]} 37. h6 {[%clk 0:00:06.5]} 37... Qxd3
{[%clk 0:00:12.5]} 38. Qxc5+ {[%clk 0:00:05.6]} 38... Ke8 {[%clk 0:00:11.7]} 39.
Qe5+ {[%clk 0:00:05.1]} 39... Kd7 {[%clk 0:00:11.3]} 40. Qf6 {[%clk 0:00:03.9]}
40... Qe4+ {[%clk 0:00:10.9]} 41. Kh2 {[%clk 0:00:04.6]} 41... d3 {[%clk
0:00:10.4]} 42. Qxf7+ {[%clk 0:00:03.3]} 42... Kc6 {[%clk 0:00:07.3]} 43. h7
{[%clk 0:00:03.9]} 43... Qd4 {[%clk 0:00:06.9]} 44. Qg6+ {[%clk 0:00:02.6]}
44... Kc5 {[%clk 0:00:06.1]} 45. Qf5+ {[%clk 0:00:02.8]} 45... Kb6 {[%clk
0:00:05.6]} 46. Qf4 {[%clk 0:00:02.4]} 46... Qxf4 {[%clk 0:00:04.6]} 47. gxf4
{[%clk 0:00:03.3]} 47... d2 {[%clk 0:00:05.2]} 48. h8=Q {[%clk 0:00:04.2]} 48...
d1=Q {[%clk 0:00:05.5]} 49. Qe5 {[%clk 0:00:05.1]} 49... b4 {[%clk 0:00:05.1]}
50. Qe3+ {[%clk 0:00:04.3]} 50... Kb5 {[%clk 0:00:04.7]} 51. f5 {[%clk
0:00:05.2]} 51... b3 {[%clk 0:00:04.8]} 52. Qe5+ {[%clk 0:00:04.6]} 52... Kc4
{[%clk 0:00:04.2]} 53. Qc7+ {[%clk 0:00:04.4]} 53... Kd3 {[%clk 0:00:03.7]} 54.
Qd7+ {[%clk 0:00:04.8]} 54... Ke2 {[%clk 0:00:03.7]} 55. Qxd1+ {[%clk
0:00:04.8]} 55... Kxd1 {[%clk 0:00:04.6]} 56. f6 {[%clk 0:00:05.7]} 56... b2
{[%clk 0:00:04.8]} 57. f7 {[%clk 0:00:06.6]} 57... b1=Q {[%clk 0:00:05.1]} 58.
f8=Q {[%clk 0:00:07.5]} 58... Qh7+ {[%clk 0:00:05.2]} 59. Kg3 {[%clk 0:00:08]}
59... Qg6+ {[%clk 0:00:05.8]} 60. Kf4 {[%clk 0:00:08.1]} 60... Ke2 {[%clk
0:00:05.2]} 61. Qf5 {[%clk 0:00:06.4]} 61... Qxf5+ {[%clk 0:00:03.9]} 62. Kxf5
{[%clk 0:00:07.3]} 62... Kxf2 {[%clk 0:00:04.7]} 1/2-1/2

[Event "*** Titled Tuesday Blitz"]
[Site "Chess.com"]
[Date "2021.02.09"]
[Round "6"]
[White "KuzubovYuriy"]
[Black "Misi_95"]
[Result "0-1"]
[WhiteElo "2813"]
[BlackElo "2661"]
[TimeControl "180+1"]
[EndTime "11:09:36 PST"]
[Termination "Misi_95 won on time"]

1. d4 {[%clk 0:03:00.9]} 1... Nf6 {[%clk 0:02:58.9]} 2. Nf3 {[%clk 0:03:01.5]}
2... g6 {[%clk 0:02:58.4]} 3. Nbd2 {[%clk 0:03:02.1]} 3... d5 {[%clk 0:02:57.1]}
4. e3 {[%clk 0:03:01.5]} 4... Bg7 {[%clk 0:02:57.1]} 5. b4 {[%clk 0:03:02.1]}
5... O-O {[%clk 0:02:56.9]} 6. Bb2 {[%clk 0:03:02.3]} 6... a5 {[%clk 0:02:56.5]}
7. b5 {[%clk 0:03:02.8]} 7... a4 {[%clk 0:02:56.5]} 8. c4 {[%clk 0:02:59.4]}
8... c6 {[%clk 0:02:50.7]} 9. Ba3 {[%clk 0:02:40.1]} 9... Be6 {[%clk 0:02:30.6]}
10. Rb1 {[%clk 0:02:28]} 10... Nbd7 {[%clk 0:02:25]} 11. Be2 {[%clk 0:02:16.5]}
11... dxc4 {[%clk 0:02:09.9]} 12. Bxc4 {[%clk 0:02:04.4]} 12... Bxc4 {[%clk
0:01:58.1]} 13. Nxc4 {[%clk 0:02:05.3]} 13... Nd5 {[%clk 0:01:49.3]} 14. Qd3
{[%clk 0:01:52.6]} 14... N7b6 {[%clk 0:01:23.5]} 15. Nxb6 {[%clk 0:01:38.2]}
15... Qxb6 {[%clk 0:01:22.6]} 16. O-O {[%clk 0:01:37.8]} 16... cxb5 {[%clk
0:01:21.9]} 17. Qxb5 {[%clk 0:01:07.7]} 17... Qxb5 {[%clk 0:01:11.9]} 18. Rxb5
{[%clk 0:01:08.6]} 18... Nc3 {[%clk 0:01:12.3]} 19. Rb2 {[%clk 0:01:03.2]} 19...
Bf6 {[%clk 0:01:05]} 20. Rc1 {[%clk 0:01:02.2]} 20... Ne4 {[%clk 0:00:54.2]} 21.
Kf1 {[%clk 0:00:49.6]} 21... Rfc8 {[%clk 0:00:53.6]} 22. Rbc2 {[%clk 0:00:49.2]}
22... Rxc2 {[%clk 0:00:51.6]} 23. Rxc2 {[%clk 0:00:50.1]} 23... b5 {[%clk
0:00:51.5]} 24. Ke2 {[%clk 0:00:48.4]} 24... Rb8 {[%clk 0:00:29.4]} 25. Bb4
{[%clk 0:00:45.4]} 25... Nd6 {[%clk 0:00:23.2]} 26. Nd2 {[%clk 0:00:45]} 26...
Kf8 {[%clk 0:00:18.3]} 27. Kd3 {[%clk 0:00:41.9]} 27... Ke8 {[%clk 0:00:18.4]}
28. e4 {[%clk 0:00:40.3]} 28... Bg5 {[%clk 0:00:17.6]} 29. Nf3 {[%clk
0:00:35.9]} 29... Bh6 {[%clk 0:00:17.6]} 30. Ne5 {[%clk 0:00:33.7]} 30... Bg7
{[%clk 0:00:17.8]} 31. Nc6 {[%clk 0:00:32]} 31... Rc8 {[%clk 0:00:17.6]} 32.
Bxd6 {[%clk 0:00:25.8]} 32... exd6 {[%clk 0:00:17.3]} 33. Nb4 {[%clk 0:00:26.7]}
33... Rxc2 {[%clk 0:00:16.8]} 34. Nxc2 {[%clk 0:00:27.4]} 34... Kd7 {[%clk
0:00:17.4]} 35. Nb4 {[%clk 0:00:24.3]} 35... h5 {[%clk 0:00:15.3]} 36. g3 {[%clk
0:00:24.2]} 36... Bf6 {[%clk 0:00:15]} 37. f4 {[%clk 0:00:22.7]} 37... Bd8
{[%clk 0:00:15.4]} 38. h3 {[%clk 0:00:22.8]} 38... Ba5 {[%clk 0:00:15.9]} 39.
Nd5 {[%clk 0:00:22.8]} 39... f5 {[%clk 0:00:13.3]} 40. exf5 {[%clk 0:00:20.9]}
40... gxf5 {[%clk 0:00:14.2]} 41. Nf6+ {[%clk 0:00:21.5]} 41... Ke6 {[%clk
0:00:13.9]} 42. Nxh5 {[%clk 0:00:22.1]} 42... b4 {[%clk 0:00:13.9]} 43. Kc2
{[%clk 0:00:19.2]} 43... Kd5 {[%clk 0:00:13.3]} 44. Ng7 {[%clk 0:00:19]} 44...
Ke4 {[%clk 0:00:11]} 45. h4 {[%clk 0:00:18]} 45... Bd8 {[%clk 0:00:11.3]} 46. h5
{[%clk 0:00:16.4]} 46... Bf6 {[%clk 0:00:11.9]} 47. Ne6 {[%clk 0:00:16.5]} 47...
Kf3 {[%clk 0:00:11.9]} 48. h6 {[%clk 0:00:15.3]} 48... Kxg3 {[%clk 0:00:11.7]}
49. h7 {[%clk 0:00:14.5]} 49... Kf3 {[%clk 0:00:10.9]} 50. Nc7 {[%clk
0:00:13.8]} 50... Ke4 {[%clk 0:00:08.8]} 51. Ne8 {[%clk 0:00:13.3]} 51... Bxd4
{[%clk 0:00:08.8]} 52. Nxd6+ {[%clk 0:00:13.7]} 52... Kxf4 {[%clk 0:00:09.2]}
53. Nf7 {[%clk 0:00:13.5]} 53... Ke3 {[%clk 0:00:08.4]} 54. Nh6 {[%clk
0:00:12.3]} 54... Ke4 {[%clk 0:00:07.9]} 55. Nf7 {[%clk 0:00:11.6]} 55... f4
{[%clk 0:00:07.6]} 56. Ng5+ {[%clk 0:00:11.8]} 56... Ke3 {[%clk 0:00:07.1]} 57.
Ne6 {[%clk 0:00:08.5]} 57... Be5 {[%clk 0:00:07]} 58. Kd1 {[%clk 0:00:05.9]}
58... f3 {[%clk 0:00:06.9]} 59. Nc5 {[%clk 0:00:05.4]} 59... f2 {[%clk 0:00:06]}
0-1

[Event "*** Titled Tuesday Blitz"]
[Site "Chess.com"]
[Date "2021.02.09"]
[Round "6"]
[White "Beca95"]
[Black "DanielDardha2005"]
[Result "1-0"]
[WhiteElo "2906"]
[BlackElo "2703"]
[TimeControl "180+1"]
[EndTime "11:09:38 PST"]
[Termination "Beca95 won by resignation"]

1. d4 {[%clk 0:03:00.9]} 1... Nf6 {[%clk 0:02:59.9]} 2. c4 {[%clk 0:02:58.9]}
2... c5 {[%clk 0:02:58.4]} 3. d5 {[%clk 0:02:58.3]} 3... a6 {[%clk 0:02:58.4]}
4. a4 {[%clk 0:02:54]} 4... e5 {[%clk 0:02:50.5]} 5. Nc3 {[%clk 0:02:52.4]} 5...
d6 {[%clk 0:02:46.3]} 6. e4 {[%clk 0:02:52]} 6... a5 {[%clk 0:02:44]} 7. h3
{[%clk 0:02:49.7]} 7... Na6 {[%clk 0:02:44.4]} 8. g4 {[%clk 0:02:45]} 8... Nb4
{[%clk 0:02:40.8]} 9. f4 {[%clk 0:02:29.5]} 9... exf4 {[%clk 0:02:39.6]} 10.
Bxf4 {[%clk 0:02:29.6]} 10... Nd7 {[%clk 0:02:34.2]} 11. Nf3 {[%clk 0:02:29.1]}
11... f6 {[%clk 0:02:22.1]} 12. Qe2 {[%clk 0:02:26.4]} 12... Ne5 {[%clk
0:02:21.9]} 13. O-O-O {[%clk 0:02:24.2]} 13... Bd7 {[%clk 0:02:21.8]} 14. Qg2
{[%clk 0:01:59.4]} 14... Qb6 {[%clk 0:02:17.9]} 15. Nb5 {[%clk 0:01:57.1]} 15...
O-O-O {[%clk 0:02:15.6]} 16. Ne1 {[%clk 0:01:46.6]} 16... g6 {[%clk 0:02:12.9]}
17. Nc2 {[%clk 0:01:45.1]} 17... h5 {[%clk 0:02:05.5]} 18. Be2 {[%clk 0:01:40]}
18... Bxb5 {[%clk 0:01:55.9]} 19. cxb5 {[%clk 0:01:39]} 19... Bh6 {[%clk
0:01:54.1]} 20. Bxh6 {[%clk 0:01:38.1]} 20... Rxh6 {[%clk 0:01:55]} 21. Ne3
{[%clk 0:01:22.3]} 21... hxg4 {[%clk 0:01:48.2]} 22. hxg4 {[%clk 0:01:21.6]}
22... Rdh8 {[%clk 0:01:45.2]} 23. Rxh6 {[%clk 0:01:19.3]} 23... Rxh6 {[%clk
0:01:46.1]} 24. Kb1 {[%clk 0:01:19.3]} 24... Qd8 {[%clk 0:01:43.2]} 25. g5
{[%clk 0:01:15.8]} 25... fxg5 {[%clk 0:01:39]} 26. Ng4 {[%clk 0:01:15.9]} 26...
Nxg4 {[%clk 0:01:37.6]} 27. Bxg4+ {[%clk 0:01:15.9]} 27... Kb8 {[%clk
0:01:28.8]} 28. e5 {[%clk 0:01:16.2]} 28... dxe5 {[%clk 0:01:18.5]} 29. d6
{[%clk 0:01:15.7]} 29... c4 {[%clk 0:01:16.2]} 30. Qe4 {[%clk 0:01:06.9]} 30...
Nd3 {[%clk 0:00:46.7]} 31. Bf3 {[%clk 0:00:21.6]} 31... Rh7 {[%clk 0:00:27.3]}
32. Qxc4 {[%clk 0:00:21.5]} 32... Nb4 {[%clk 0:00:14.2]} 33. Qc5 {[%clk
0:00:16.8]} 33... Qf6 {[%clk 0:00:12.4]} 34. Be4 {[%clk 0:00:16.5]} 34... Rd7
{[%clk 0:00:10.9]} 35. b6 {[%clk 0:00:16.3]} 35... Qd8 {[%clk 0:00:10]} 36. Qc7+
{[%clk 0:00:13]} 36... Rxc7 {[%clk 0:00:09.9]} 37. dxc7+ {[%clk 0:00:12.9]}
37... Qxc7 {[%clk 0:00:10.8]} 38. bxc7+ {[%clk 0:00:13.4]} 38... Kxc7 {[%clk
0:00:11.5]} 39. Rg1 {[%clk 0:00:13.6]} 39... b5 {[%clk 0:00:10.6]} 40. axb5
{[%clk 0:00:13.2]} 40... Kb6 {[%clk 0:00:11]} 41. Rxg5 {[%clk 0:00:13.5]} 41...
Kxb5 {[%clk 0:00:11.9]} 42. Rxe5+ {[%clk 0:00:13.8]} 42... Kc4 {[%clk
0:00:10.6]} 43. Bxg6 {[%clk 0:00:13.7]} 43... a4 {[%clk 0:00:10.9]} 44. Bf7+
{[%clk 0:00:13.4]} 44... Kd4 {[%clk 0:00:10.5]} 45. Rh5 {[%clk 0:00:13.9]} 45...
Nd3 {[%clk 0:00:08.1]} 46. Rh4+ {[%clk 0:00:13.8]} 46... Kc5 {[%clk 0:00:07.3]}
47. Rxa4 {[%clk 0:00:13.7]} 47... Ne5 {[%clk 0:00:05.7]} 48. Bb3 {[%clk
0:00:12.8]} 48... Kb5 {[%clk 0:00:05.7]} 49. Re4 {[%clk 0:00:12.6]} 49... Nf3
{[%clk 0:00:04.2]} 50. Kc2 {[%clk 0:00:10.3]} 50... Kb6 {[%clk 0:00:04.1]} 51.
Kc3 {[%clk 0:00:10.5]} 51... Ng5 {[%clk 0:00:03.8]} 52. Re5 {[%clk 0:00:09.5]}
52... Nf3 {[%clk 0:00:04]} 53. Rf5 {[%clk 0:00:09]} 53... Nh4 {[%clk 0:00:04.3]}
54. Rf6+ {[%clk 0:00:08.1]} 54... Kc5 {[%clk 0:00:04.8]} 55. Bc2 {[%clk
0:00:07]} 55... Ng2 {[%clk 0:00:04.9]} 56. Be4 {[%clk 0:00:07.1]} 56... Ne3
{[%clk 0:00:04.7]} 57. Kd3 {[%clk 0:00:07.2]} 57... Ng4 {[%clk 0:00:04.9]} 58.
Rf5+ {[%clk 0:00:06.7]} 58... Kd6 {[%clk 0:00:04.8]} 59. Kd4 {[%clk 0:00:07.2]}
59... Ke6 {[%clk 0:00:03.2]} 60. b4 {[%clk 0:00:07]} 60... Nh6 {[%clk
0:00:01.9]} 61. Rg5 {[%clk 0:00:06.3]} 61... Nf7 {[%clk 0:00:01.9]} 62. Bd5+
{[%clk 0:00:06.7]} 1-0